[Event "Titled Tuesday Blitz July 25 Early 2023"]
[White "Garv Gaur"]
[Black "Donskov, Anatoly"]
[WhiteFideId "45030839"]
[BlackFideId "24143413"]
[WhiteElo "2551"]
[BlackElo "2407"]
[Result "1-0"]
[Round "5"]
[TimeControl "180+2"]
[Date "2023.07.25"]
[WhiteClock "0:00:35"]
[BlackClock "0:00:00"]
[Board "158"]

1. Nf3 {[%clk 0:02:56]}  d5 {[%clk 0:02:59]} 2. g3 {[%clk 0:02:53]}  Nf6 {[%clk 0:02:58]} 3. b3 {[%clk 0:02:50]}  g6 {[%clk 0:02:57]} 4. Bb2 {[%clk 0:02:50]}  Bg7 {[%clk 0:02:57]} 5. Bg2 {[%clk 0:02:51]}  O-O {[%clk 0:02:55]} 6. O-O {[%clk 0:02:51]}  Bf5 {[%clk 0:02:54]} 7. d3 {[%clk 0:02:52]}  c6 {[%clk 0:02:54]} 8. c4 {[%clk 0:02:52]}  h6 {[%clk 0:02:46]} 9. Nbd2 {[%clk 0:02:52]}  Na6 {[%clk 0:02:36]} 10. Ne5 {[%clk 0:02:48]}  Nd7 {[%clk 0:02:29]} 11. Nxd7 {[%clk 0:02:32]}  Qxd7 {[%clk 0:02:25]} 12. Bxg7 {[%clk 0:02:33]}  Kxg7 {[%clk 0:02:26]} 13. Qc2 {[%clk 0:02:31]}  d4 {[%clk 0:02:20]} 14. Rfe1 {[%clk 0:02:30]}  e5 {[%clk 0:02:18]} 15. a3 {[%clk 0:02:23]}  Rae8 {[%clk 0:02:08]} 16. b4 {[%clk 0:02:22]}  Nc7 {[%clk 0:02:01]} 17. Rad1 {[%clk 0:02:18]}  Bh3 {[%clk 0:01:58]} 18. Bh1 {[%clk 0:02:17]}  h5 {[%clk 0:01:57]} 19. Nf3 {[%clk 0:02:13]}  Bg4 {[%clk 0:01:54]} 20. Qb2 {[%clk 0:02:09]}  b6 {[%clk 0:01:49]} 21. Rd2 {[%clk 0:02:00]}  Qe7 {[%clk 0:01:17]} 22. e3 {[%clk 0:01:51]}  Qf6 {[%clk 0:00:52]} 23. Nh4 {[%clk 0:01:50]}  g5 {[%clk 0:00:47]} 24. Ng2 {[%clk 0:01:50]}  Bf3 {[%clk 0:00:40]} 25. Rf1 {[%clk 0:01:45]}  Ne6 {[%clk 0:00:36]} 26. Ne1 {[%clk 0:01:43]}  g4 {[%clk 0:00:27]} 27. h4 {[%clk 0:01:02]}  Bxh1 {[%clk 0:00:15]} 28. Kxh1 {[%clk 0:01:03]}  Qg6 {[%clk 0:00:15]} 29. Re2 {[%clk 0:00:58]}  f5 {[%clk 0:00:14]} 30. Ng2 {[%clk 0:00:57]}  f4 {[%clk 0:00:13]} 31. exf4 {[%clk 0:00:55]}  exf4 {[%clk 0:00:13]} 32. Rxe6 {[%clk 0:00:40]}  Qxe6 {[%clk 0:00:10]} 33. Nxf4 {[%clk 0:00:40]}  Rxf4 {[%clk 0:00:07]} 34. gxf4 {[%clk 0:00:41]}  Qf6 {[%clk 0:00:08]} 35. Kg1 {[%clk 0:00:41]}  Rd8 {[%clk 0:00:04]} 36. Re1 {[%clk 0:00:40]}  Qxh4 {[%clk 0:00:02]} 37. Qe2 {[%clk 0:00:38]}  Qf6 {[%clk 0:00:02]} 38. Qe5 {[%clk 0:00:37]}  Kf7 {[%clk 0:00:02]} 39. Qxh5+ {[%clk 0:00:36]}  Kg7 {[%clk 0:00:02]} 40. Qxg4+ {[%clk 0:00:36]}  Qg6 {[%clk 0:00:02]} 41. Re7+ {[%clk 0:00:35]}  Kf6 {[%clk 0:00:00]} 42. Re6+ {[%clk 0:00:35]} 1-0


[Site "https://www.chess.com"]

[Event "Titled Tuesday Blitz July 25 Early 2023"]
[White "To, Nhat Minh"]
[Black "Stork, Oliver"]
[WhiteFideId "729019"]
[BlackFideId "12955728"]
[WhiteElo "2530"]
[BlackElo "2394"]
[Result "1-0"]
[Round "5"]
[TimeControl "180+2"]
[Date "2023.07.25"]
[WhiteClock "0:00:41"]
[BlackClock "0:00:00"]
[Board "160"]

1. e4 {[%clk 0:02:57]}  c5 {[%clk 0:02:59]} 2. Nf3 {[%clk 0:02:57]}  d6 {[%clk 0:02:59]} 3. d4 {[%clk 0:02:57]}  cxd4 {[%clk 0:03:00]} 4. Nxd4 {[%clk 0:02:58]}  Nf6 {[%clk 0:02:59]} 5. Nc3 {[%clk 0:02:59]}  g6 {[%clk 0:02:59]} 6. Be3 {[%clk 0:02:57]}  Bg7 {[%clk 0:03:00]} 7. f3 {[%clk 0:02:58]}  O-O {[%clk 0:03:00]} 8. Qd2 {[%clk 0:02:59]}  Nc6 {[%clk 0:03:00]} 9. O-O-O {[%clk 0:02:59]}  d5 {[%clk 0:03:00]} 10. exd5 {[%clk 0:03:00]}  Nxd5 {[%clk 0:02:59]} 11. Nxc6 {[%clk 0:03:01]}  bxc6 {[%clk 0:02:59]} 12. Bd4 {[%clk 0:03:02]}  e5 {[%clk 0:02:59]} 13. Bc5 {[%clk 0:03:02]}  Re8 {[%clk 0:02:59]} 14. Ne4 {[%clk 0:02:55]}  Qc7 {[%clk 0:02:59]} 15. h4 {[%clk 0:02:24]}  f5 {[%clk 0:02:39]} 16. Nd6 {[%clk 0:02:23]}  Rd8 {[%clk 0:02:38]} 17. Nxc8 {[%clk 0:02:22]}  Raxc8 {[%clk 0:02:39]} 18. Bc4 {[%clk 0:02:05]}  h5 {[%clk 0:02:38]} 19. Kb1 {[%clk 0:02:00]}  Kh7 {[%clk 0:02:31]} 20. Qf2 {[%clk 0:01:55]}  Rb8 {[%clk 0:02:11]} 21. Bb3 {[%clk 0:01:53]}  a5 {[%clk 0:02:06]} 22. a4 {[%clk 0:01:53]}  e4 {[%clk 0:01:48]} 23. fxe4 {[%clk 0:01:54]}  fxe4 {[%clk 0:01:48]} 24. g4 {[%clk 0:01:50]}  hxg4 {[%clk 0:01:04]} 25. h5 {[%clk 0:01:50]}  g5 {[%clk 0:01:03]} 26. h6 {[%clk 0:01:44]}  Be5 {[%clk 0:00:58]} 27. Qf5+ {[%clk 0:01:36]}  Kh8 {[%clk 0:00:56]} 28. Qxe4 {[%clk 0:01:31]}  Rxb3 {[%clk 0:00:24]} 29. cxb3 {[%clk 0:01:28]}  Rb8 {[%clk 0:00:23]} 30. Rhe1 {[%clk 0:01:20]}  Bf6 {[%clk 0:00:13]} 31. Ka2 {[%clk 0:01:06]}  Qb7 {[%clk 0:00:13]} 32. Qc4 {[%clk 0:00:56]}  Qh7 {[%clk 0:00:08]} 33. Re6 {[%clk 0:00:53]}  Rb4 {[%clk 0:00:00]} 34. Re8+ {[%clk 0:00:41]} 1-0


[Site "https://www.chess.com"]

[Event "Titled Tuesday Blitz July 25 Early 2023"]
[White "Fontaine, Quentin"]
[Black "Sahil, Tickoo"]
[WhiteFideId "230804"]
[BlackFideId "5019710"]
[WhiteElo "2489"]
[BlackElo "2366"]
[Result "1-0"]
[Round "5"]
[TimeControl "180+2"]
[Date "2023.07.25"]
[WhiteClock "0:00:46"]
[BlackClock "0:00:14"]
[Board "162"]

1. Nf3 {[%clk 0:03:00]}  d5 {[%clk 0:02:53]} 2. g3 {[%clk 0:03:00]}  Nf6 {[%clk 0:02:51]} 3. Bg2 {[%clk 0:03:01]}  c6 {[%clk 0:02:50]} 4. O-O {[%clk 0:03:01]}  Bf5 {[%clk 0:02:51]} 5. d3 {[%clk 0:03:01]}  e6 {[%clk 0:02:51]} 6. Nbd2 {[%clk 0:03:02]}  h6 {[%clk 0:02:50]} 7. b3 {[%clk 0:03:02]}  Be7 {[%clk 0:02:50]} 8. Bb2 {[%clk 0:03:02]}  a5 {[%clk 0:02:50]} 9. e4 {[%clk 0:02:59]}  dxe4 {[%clk 0:02:49]} 10. dxe4 {[%clk 0:02:59]}  Bh7 {[%clk 0:02:47]} 11. a4 {[%clk 0:02:54]}  O-O {[%clk 0:02:47]} 12. Qe2 {[%clk 0:02:52]}  Na6 {[%clk 0:02:47]} 13. Ne1 {[%clk 0:02:50]}  Nb4 {[%clk 0:02:46]} 14. Nc4 {[%clk 0:02:26]}  Nd7 {[%clk 0:02:36]} 15. Nd3 {[%clk 0:02:23]}  Qc7 {[%clk 0:02:13]} 16. Nxb4 {[%clk 0:02:14]}  axb4 {[%clk 0:02:08]} 17. Rad1 {[%clk 0:02:08]}  Rfd8 {[%clk 0:02:06]} 18. f4 {[%clk 0:01:46]}  Bc5+ {[%clk 0:01:51]} 19. Kh1 {[%clk 0:01:46]}  Nf8 {[%clk 0:01:45]} 20. f5 {[%clk 0:01:30]}  exf5 {[%clk 0:01:40]} 21. exf5 {[%clk 0:01:29]}  Rxd1 {[%clk 0:01:38]} 22. Qxd1 {[%clk 0:01:24]}  Rd8 {[%clk 0:01:37]} 23. Qg4 {[%clk 0:01:23]}  g6 {[%clk 0:01:04]} 24. Qh4 {[%clk 0:01:23]}  b5 {[%clk 0:00:27]} 25. Qf6 {[%clk 0:01:11]}  Bd4 {[%clk 0:00:25]} 26. Bxd4 {[%clk 0:01:10]}  Rxd4 {[%clk 0:00:25]} 27. Qxd4 {[%clk 0:01:10]}  bxc4 {[%clk 0:00:26]} 28. Qxc4 {[%clk 0:01:08]}  gxf5 {[%clk 0:00:25]} 29. Qxc6 {[%clk 0:01:07]}  Qe5 {[%clk 0:00:24]} 30. Qxh6 {[%clk 0:01:00]}  Ne6 {[%clk 0:00:22]} 31. Qd2 {[%clk 0:00:47]}  Ng5 {[%clk 0:00:14]} 32. Qxg5+ {[%clk 0:00:46]} 1-0


[Site "https://www.chess.com"]

[Event "Titled Tuesday Blitz July 25 Early 2023"]
[White "Korelskiy, Egor"]
[Black "Fisabilillah, Ummi"]
[WhiteFideId "34329064"]
[BlackFideId "7104804"]
[WhiteElo "2488"]
[BlackElo "2354"]
[Result "0-1"]
[Round "5"]
[TimeControl "180+2"]
[Date "2023.07.25"]
[WhiteClock "0:00:00"]
[BlackClock "0:00:20"]
[Board "163"]

1. e4 {[%clk 0:03:00]}  e6 {[%clk 0:02:57]} 2. d4 {[%clk 0:02:59]}  d5 {[%clk 0:02:58]} 3. Nc3 {[%clk 0:02:52]}  Bb4 {[%clk 0:02:57]} 4. e5 {[%clk 0:02:51]}  c5 {[%clk 0:02:56]} 5. a3 {[%clk 0:02:45]}  Bxc3+ {[%clk 0:02:56]} 6. bxc3 {[%clk 0:02:46]}  Qc7 {[%clk 0:02:56]} 7. Nf3 {[%clk 0:02:46]}  Ne7 {[%clk 0:02:55]} 8. Be2 {[%clk 0:02:46]}  b6 {[%clk 0:02:56]} 9. O-O {[%clk 0:02:45]}  Ba6 {[%clk 0:02:56]} 10. Bxa6 {[%clk 0:02:42]}  Nxa6 {[%clk 0:02:57]} 11. Bg5 {[%clk 0:02:41]}  Nf5 {[%clk 0:02:57]} 12. Qe2 {[%clk 0:02:41]}  Nb8 {[%clk 0:02:56]} 13. c4 {[%clk 0:02:29]}  h6 {[%clk 0:02:36]} 14. Bd2 {[%clk 0:02:16]}  dxc4 {[%clk 0:02:24]} 15. Qxc4 {[%clk 0:02:12]}  O-O {[%clk 0:02:22]} 16. d5 {[%clk 0:02:10]}  exd5 {[%clk 0:02:19]} 17. Qxd5 {[%clk 0:02:10]}  Qc6 {[%clk 0:02:19]} 18. c4 {[%clk 0:02:03]}  Ne7 {[%clk 0:02:16]} 19. Qd3 {[%clk 0:02:02]}  Qe6 {[%clk 0:02:15]} 20. Bf4 {[%clk 0:01:56]}  Nbc6 {[%clk 0:02:15]} 21. Bg3 {[%clk 0:01:56]}  Rad8 {[%clk 0:02:15]} 22. Qc3 {[%clk 0:01:52]}  Nf5 {[%clk 0:02:16]} 23. Rfe1 {[%clk 0:01:51]}  Nfd4 {[%clk 0:02:14]} 24. Nd2 {[%clk 0:01:44]}  Na5 {[%clk 0:02:09]} 25. Rac1 {[%clk 0:01:41]}  Rd7 {[%clk 0:02:01]} 26. Ne4 {[%clk 0:01:39]}  Rfd8 {[%clk 0:02:01]} 27. Nd6 {[%clk 0:01:36]}  Nac6 {[%clk 0:01:42]} 28. h3 {[%clk 0:01:33]}  Nf5 {[%clk 0:01:40]} 29. Bh2 {[%clk 0:01:31]}  Ncd4 {[%clk 0:01:41]} 30. Qd3 {[%clk 0:01:18]}  Qg6 {[%clk 0:01:34]} 31. Qc3 {[%clk 0:00:57]}  Nh4 {[%clk 0:01:31]} 32. Bg3 {[%clk 0:00:53]}  Ndf5 {[%clk 0:01:25]} 33. Rcd1 {[%clk 0:00:24]}  Nxg3 {[%clk 0:01:13]} 34. fxg3 {[%clk 0:00:24]}  Nf5 {[%clk 0:01:13]} 35. Nxf5 {[%clk 0:00:12]}  Qxf5 {[%clk 0:01:09]} 36. Rxd7 {[%clk 0:00:11]}  Rxd7 {[%clk 0:01:10]} 37. Qe3 {[%clk 0:00:11]}  Rd3 {[%clk 0:01:08]} 38. Qe2 {[%clk 0:00:11]}  Rxg3 {[%clk 0:01:07]} 39. Rd1 {[%clk 0:00:09]}  Rxa3 {[%clk 0:01:01]} 40. Kh1 {[%clk 0:00:08]}  Kh7 {[%clk 0:00:57]} 41. Rf1 {[%clk 0:00:07]}  Qg6 {[%clk 0:00:50]} 42. h4 {[%clk 0:00:05]}  h5 {[%clk 0:00:33]} 43. Qf2 {[%clk 0:00:02]}  Kg8 {[%clk 0:00:30]} 44. Re1 {[%clk 0:00:01]}  Rg3 {[%clk 0:00:28]} 45. e6 {[%clk 0:00:01]}  fxe6 {[%clk 0:00:28]} 46. Kh2 {[%clk 0:00:01]}  Rg4 {[%clk 0:00:26]} 47. Re5 {[%clk 0:00:01]}  Qf6 {[%clk 0:00:25]} 48. Qe3 {[%clk 0:00:01]}  Qxh4+ {[%clk 0:00:23]} 49. Kg1 {[%clk 0:00:01]}  Rxc4 {[%clk 0:00:21]} 50. Rxe6 {[%clk 0:00:02]}  Qd4 {[%clk 0:00:20]} 51. Re8+ {[%clk 0:00:00]}  Kh7 {[%clk 0:00:20]} 0-1


[Site "https://www.chess.com"]

[Event "Titled Tuesday Blitz July 25 Early 2023"]
[White "Lehtosaari, Mauri"]
[Black "Wernberg, Hugo"]
[WhiteFideId "501999"]
[BlackFideId "1737511"]
[WhiteElo "2484"]
[BlackElo "2345"]
[Result "0-1"]
[Round "5"]
[TimeControl "180+2"]
[Date "2023.07.25"]
[WhiteClock "0:00:00"]
[BlackClock "0:00:07"]
[Board "164"]

1. d4 {[%clk 0:02:53]}  d5 {[%clk 0:02:57]} 2. Nf3 {[%clk 0:02:54]}  e6 {[%clk 0:02:57]} 3. Bf4 {[%clk 0:02:51]}  Nf6 {[%clk 0:02:56]} 4. Nbd2 {[%clk 0:02:50]}  c5 {[%clk 0:02:56]} 5. e3 {[%clk 0:02:50]}  Bd6 {[%clk 0:02:55]} 6. Bg3 {[%clk 0:02:49]}  Qc7 {[%clk 0:02:56]} 7. c3 {[%clk 0:02:49]}  Nbd7 {[%clk 0:02:56]} 8. Bd3 {[%clk 0:02:44]}  O-O {[%clk 0:02:55]} 9. O-O {[%clk 0:02:37]}  e5 {[%clk 0:02:55]} 10. dxe5 {[%clk 0:02:36]}  Nxe5 {[%clk 0:02:56]} 11. Nxe5 {[%clk 0:02:36]}  Bxe5 {[%clk 0:02:56]} 12. Bxe5 {[%clk 0:02:37]}  Qxe5 {[%clk 0:02:57]} 13. Nf3 {[%clk 0:02:37]}  Qe7 {[%clk 0:02:56]} 14. h3 {[%clk 0:02:37]}  b6 {[%clk 0:02:54]} 15. Re1 {[%clk 0:02:35]}  Bb7 {[%clk 0:02:54]} 16. Qa4 {[%clk 0:02:34]}  Ne4 {[%clk 0:02:44]} 17. Rad1 {[%clk 0:02:26]}  Rfd8 {[%clk 0:02:40]} 18. Nd2 {[%clk 0:02:13]}  Nxd2 {[%clk 0:02:19]} 19. Rxd2 {[%clk 0:02:13]}  d4 {[%clk 0:02:01]} 20. cxd4 {[%clk 0:02:10]}  cxd4 {[%clk 0:01:56]} 21. e4 {[%clk 0:02:07]}  a6 {[%clk 0:01:48]} 22. Red1 {[%clk 0:02:00]}  b5 {[%clk 0:01:43]} 23. Qa5 {[%clk 0:01:57]}  Rd6 {[%clk 0:01:27]} 24. f3 {[%clk 0:01:41]}  Rad8 {[%clk 0:01:21]} 25. Bf1 {[%clk 0:01:39]}  h5 {[%clk 0:01:11]} 26. a4 {[%clk 0:01:34]}  bxa4 {[%clk 0:01:04]} 27. Qxh5 {[%clk 0:01:34]}  Rb6 {[%clk 0:00:41]} 28. Bc4 {[%clk 0:01:06]}  g6 {[%clk 0:00:28]} 29. Qh6 {[%clk 0:00:51]}  Qb4 {[%clk 0:00:20]} 30. Rxd4 {[%clk 0:00:37]}  Qc5 {[%clk 0:00:11]} 31. Qe3 {[%clk 0:00:23]}  Rbd6 {[%clk 0:00:10]} 32. Bd5 {[%clk 0:00:24]}  Bxd5 {[%clk 0:00:10]} 33. exd5 {[%clk 0:00:18]}  Rxd5 {[%clk 0:00:09]} 34. Kh2 {[%clk 0:00:01]}  Rxd4 {[%clk 0:00:08]} 35. Rxd4 {[%clk 0:00:02]}  Qxd4 {[%clk 0:00:09]} 36. Qe2 {[%clk 0:00:01]}  Qd6+ {[%clk 0:00:07]} 37. g3 {[%clk 0:00:00]}  Qd2 {[%clk 0:00:07]} 0-1


[Site "https://www.chess.com"]

[Event "Titled Tuesday Blitz July 25 Early 2023"]
[White "Tsyhanchuk, Stanislav"]
[Black "Kirillov, Dmitry"]
[WhiteFideId "13505130"]
[BlackFideId "34180572"]
[WhiteElo "2322"]
[BlackElo "2482"]
[Result "0-1"]
[Round "5"]
[TimeControl "180+2"]
[Date "2023.07.25"]
[WhiteClock "0:00:08"]
[BlackClock "0:00:44"]
[Board "166"]

1. c4 {[%clk 0:03:00]}  e5 {[%clk 0:02:57]} 2. Nc3 {[%clk 0:03:01]}  Nf6 {[%clk 0:02:57]} 3. Nf3 {[%clk 0:03:01]}  Nc6 {[%clk 0:02:57]} 4. e4 {[%clk 0:03:01]}  d6 {[%clk 0:02:56]} 5. d3 {[%clk 0:03:00]}  g6 {[%clk 0:02:52]} 6. h3 {[%clk 0:02:58]}  Bg7 {[%clk 0:02:52]} 7. Be2 {[%clk 0:02:56]}  O-O {[%clk 0:02:52]} 8. O-O {[%clk 0:02:56]}  Be6 {[%clk 0:02:52]} 9. g4 {[%clk 0:02:49]}  h6 {[%clk 0:02:45]} 10. Nd5 {[%clk 0:02:45]}  Nd7 {[%clk 0:02:35]} 11. Ne3 {[%clk 0:02:29]}  a5 {[%clk 0:02:28]} 12. Bd2 {[%clk 0:02:23]}  Nc5 {[%clk 0:02:24]} 13. Qc1 {[%clk 0:02:21]}  Kh7 {[%clk 0:02:23]} 14. Kh2 {[%clk 0:01:57]}  Bd7 {[%clk 0:02:21]} 15. Rg1 {[%clk 0:01:54]}  Ne6 {[%clk 0:02:21]} 16. g5 {[%clk 0:01:44]}  h5 {[%clk 0:02:19]} 17. Bf1 {[%clk 0:01:41]}  Ned4 {[%clk 0:02:15]} 18. Nxd4 {[%clk 0:01:36]}  Nxd4 {[%clk 0:02:16]} 19. Qd1 {[%clk 0:01:35]}  Ne6 {[%clk 0:02:12]} 20. Nd5 {[%clk 0:01:27]}  c6 {[%clk 0:02:10]} 21. Nf6+ {[%clk 0:01:06]}  Bxf6 {[%clk 0:02:08]} 22. gxf6 {[%clk 0:01:07]}  Qxf6 {[%clk 0:02:08]} 23. Qe2 {[%clk 0:01:02]}  Nd4 {[%clk 0:02:06]} 24. Qe3 {[%clk 0:00:59]}  Nf3+ {[%clk 0:01:50]} 25. Kh1 {[%clk 0:00:59]}  Nxg1 {[%clk 0:01:37]} 26. Kxg1 {[%clk 0:00:54]}  g5 {[%clk 0:01:34]} 27. Bg2 {[%clk 0:00:48]}  Rg8 {[%clk 0:01:33]} 28. Qe2 {[%clk 0:00:46]}  g4 {[%clk 0:01:27]} 29. Kh2 {[%clk 0:00:44]}  Qg6 {[%clk 0:01:21]} 30. h4 {[%clk 0:00:24]}  g3+ {[%clk 0:01:13]} 31. Kh1 {[%clk 0:00:24]}  gxf2 {[%clk 0:01:09]} 32. Qxf2 {[%clk 0:00:24]}  Raf8 {[%clk 0:01:03]} 33. Rg1 {[%clk 0:00:17]}  Qg3 {[%clk 0:00:59]} 34. Qf6 {[%clk 0:00:17]}  Rg6 {[%clk 0:00:56]} 35. Qe7 {[%clk 0:00:16]}  Re6 {[%clk 0:00:47]} 36. Qg5 {[%clk 0:00:04]}  Qxg5 {[%clk 0:00:47]} 37. hxg5 {[%clk 0:00:03]}  Rg6 {[%clk 0:00:47]} 38. Bf3 {[%clk 0:00:03]}  Bg4 {[%clk 0:00:45]} 39. Bxg4 {[%clk 0:00:03]}  hxg4 {[%clk 0:00:46]} 40. Rxg4 {[%clk 0:00:04]}  Kg7 {[%clk 0:00:47]} 41. Kg2 {[%clk 0:00:03]}  f6 {[%clk 0:00:47]} 42. Rg3 {[%clk 0:00:02]}  fxg5 {[%clk 0:00:47]} 43. Bxg5 {[%clk 0:00:03]}  Kf7 {[%clk 0:00:45]} 44. Bh4 {[%clk 0:00:02]}  Rxg3+ {[%clk 0:00:45]} 45. Bxg3 {[%clk 0:00:02]}  Ke6 {[%clk 0:00:45]} 46. Bf2 {[%clk 0:00:02]}  b5 {[%clk 0:00:45]} 47. b3 {[%clk 0:00:01]}  bxc4 {[%clk 0:00:45]} 48. bxc4 {[%clk 0:00:02]}  Rb8 {[%clk 0:00:45]} 49. Kf1 {[%clk 0:00:03]}  Rb1+ {[%clk 0:00:44]} 50. Kg2 {[%clk 0:00:03]}  Rb2 {[%clk 0:00:45]} 51. a4 {[%clk 0:00:03]}  Ra2 {[%clk 0:00:45]} 52. Kf3 {[%clk 0:00:04]}  Rxa4 {[%clk 0:00:45]} 53. Ke3 {[%clk 0:00:05]}  Ra2 {[%clk 0:00:46]} 54. Bh4 {[%clk 0:00:06]}  a4 {[%clk 0:00:46]} 55. c5 {[%clk 0:00:06]}  dxc5 {[%clk 0:00:45]} 56. Bg5 {[%clk 0:00:07]}  a3 {[%clk 0:00:44]} 57. Bh6 {[%clk 0:00:08]}  Rc2 {[%clk 0:00:43]} 58. Bf8 {[%clk 0:00:08]}  a2 {[%clk 0:00:43]} 59. d4 {[%clk 0:00:07]}  cxd4+ {[%clk 0:00:42]} 60. Kd3 {[%clk 0:00:08]}  Rc3+ {[%clk 0:00:43]} 61. Kd2 {[%clk 0:00:08]}  a1=Q {[%clk 0:00:43]} 62. Bc5 {[%clk 0:00:08]}  Qb2+ {[%clk 0:00:43]} 63. Kd1 {[%clk 0:00:08]}  Rc1# {[%clk 0:00:44]} 0-1


[Site "https://www.chess.com"]

[Event "Titled Tuesday Blitz July 25 Early 2023"]
[White "Putri, Regita Desyari"]
[Black "Yeritsyan, Hayk"]
[WhiteFideId "7109083"]
[BlackFideId "13307320"]
[WhiteElo "2216"]
[BlackElo "2467"]
[Result "0-1"]
[Round "5"]
[TimeControl "180+2"]
[Date "2023.07.25"]
[WhiteClock "0:00:00"]
[BlackClock "0:00:42"]
[Board "169"]

1. e4 {[%clk 0:02:58]}  c6 {[%clk 0:02:59]} 2. d4 {[%clk 0:02:57]}  g6 {[%clk 0:02:57]} 3. f4 {[%clk 0:02:48]}  Bg7 {[%clk 0:02:57]} 4. Nf3 {[%clk 0:02:48]}  d5 {[%clk 0:02:51]} 5. e5 {[%clk 0:02:47]}  Nh6 {[%clk 0:02:49]} 6. Bd3 {[%clk 0:02:45]}  Bf5 {[%clk 0:02:48]} 7. O-O {[%clk 0:02:36]}  Bxd3 {[%clk 0:02:48]} 8. Qxd3 {[%clk 0:02:37]}  O-O {[%clk 0:02:48]} 9. Nbd2 {[%clk 0:02:16]}  Qd7 {[%clk 0:02:15]} 10. Re1 {[%clk 0:02:12]}  Qf5 {[%clk 0:02:14]} 11. Qxf5 {[%clk 0:02:00]}  Nxf5 {[%clk 0:02:15]} 12. g4 {[%clk 0:01:46]}  Nh6 {[%clk 0:02:14]} 13. h3 {[%clk 0:01:46]}  Na6 {[%clk 0:02:13]} 14. c3 {[%clk 0:01:42]}  f6 {[%clk 0:02:12]} 15. e6 {[%clk 0:01:27]}  Nc7 {[%clk 0:02:00]} 16. Nf1 {[%clk 0:01:21]}  Kh8 {[%clk 0:01:52]} 17. Ng3 {[%clk 0:01:20]}  Rad8 {[%clk 0:01:47]} 18. Kf2 {[%clk 0:01:09]}  Nb5 {[%clk 0:01:46]} 19. Be3 {[%clk 0:00:42]}  Nd6 {[%clk 0:01:33]} 20. Nd2 {[%clk 0:00:41]}  f5 {[%clk 0:01:18]} 21. g5 {[%clk 0:00:41]}  Ng8 {[%clk 0:01:19]} 22. Nb3 {[%clk 0:00:31]}  b6 {[%clk 0:01:13]} 23. Rac1 {[%clk 0:00:28]}  Ne4+ {[%clk 0:00:54]} 24. Nxe4 {[%clk 0:00:28]}  fxe4 {[%clk 0:00:55]} 25. c4 {[%clk 0:00:21]}  Rd6 {[%clk 0:00:55]} 26. cxd5 {[%clk 0:00:16]}  cxd5 {[%clk 0:00:56]} 27. Rc7 {[%clk 0:00:16]}  Rxe6 {[%clk 0:00:56]} 28. Rec1 {[%clk 0:00:06]}  Rd6 {[%clk 0:00:49]} 29. Ke2 {[%clk 0:00:06]}  a5 {[%clk 0:00:44]} 30. a4 {[%clk 0:00:04]}  Rb8 {[%clk 0:00:42]} 31. Rc8 {[%clk 0:00:02]}  Rd8 {[%clk 0:00:41]} 32. Rxd8 {[%clk 0:00:02]}  Rxd8 {[%clk 0:00:41]} 33. Nd2 {[%clk 0:00:03]}  e6 {[%clk 0:00:39]} 34. Rc6 {[%clk 0:00:02]}  Ne7 {[%clk 0:00:40]} 35. Rc7 {[%clk 0:00:03]}  Nf5 {[%clk 0:00:41]} 36. Nb1 {[%clk 0:00:02]}  Bxd4 {[%clk 0:00:41]} 37. Bxd4+ {[%clk 0:00:00]}  Nxd4+ {[%clk 0:00:42]} 0-1


[Site "https://www.chess.com"]

[Event "Titled Tuesday Blitz July 25 Early 2023"]
[White "Atanasov, Radislav"]
[Black "ExchangeAB"]
[WhiteFideId "2901471"]
[WhiteElo "2258"]
[BlackElo "2460"]
[Result "0-1"]
[Round "5"]
[TimeControl "180+2"]
[Date "2023.07.25"]
[WhiteClock "0:00:00"]
[BlackClock "0:01:08"]
[Board "170"]

1. e4 {[%clk 0:03:00]}  c6 {[%clk 0:03:00]} 2. d4 {[%clk 0:02:59]}  d5 {[%clk 0:03:01]} 3. exd5 {[%clk 0:03:00]}  cxd5 {[%clk 0:03:01]} 4. c4 {[%clk 0:02:59]}  Nf6 {[%clk 0:03:02]} 5. Nc3 {[%clk 0:02:59]}  e6 {[%clk 0:03:01]} 6. Nf3 {[%clk 0:02:59]}  Bb4 {[%clk 0:03:00]} 7. Bd3 {[%clk 0:02:58]}  dxc4 {[%clk 0:02:55]} 8. Bxc4 {[%clk 0:02:58]}  O-O {[%clk 0:02:54]} 9. O-O {[%clk 0:02:57]}  b6 {[%clk 0:02:36]} 10. Bg5 {[%clk 0:02:54]}  Bb7 {[%clk 0:02:25]} 11. Ne5 {[%clk 0:02:42]}  h6 {[%clk 0:02:18]} 12. Bh4 {[%clk 0:02:38]}  Be7 {[%clk 0:02:16]} 13. Qd3 {[%clk 0:02:31]}  Nd5 {[%clk 0:02:12]} 14. Bg3 {[%clk 0:02:22]}  Nb4 {[%clk 0:02:02]} 15. Qd2 {[%clk 0:01:40]}  N8c6 {[%clk 0:02:01]} 16. Nf3 {[%clk 0:01:24]}  Bf6 {[%clk 0:01:56]} 17. Rad1 {[%clk 0:01:23]}  Ne7 {[%clk 0:01:52]} 18. Rfe1 {[%clk 0:01:17]}  Bxf3 {[%clk 0:01:51]} 19. gxf3 {[%clk 0:01:16]}  Nbd5 {[%clk 0:01:49]} 20. Ne4 {[%clk 0:01:09]}  Nf5 {[%clk 0:01:44]} 21. Be5 {[%clk 0:01:02]}  Bg5 {[%clk 0:01:26]} 22. Nxg5 {[%clk 0:00:26]}  Qxg5+ {[%clk 0:01:27]} 23. Qxg5 {[%clk 0:00:22]}  hxg5 {[%clk 0:01:28]} 24. Ba6 {[%clk 0:00:13]}  Rad8 {[%clk 0:01:20]} 25. Re4 {[%clk 0:00:06]}  f6 {[%clk 0:01:20]} 26. Bg3 {[%clk 0:00:06]}  Kf7 {[%clk 0:01:16]} 27. Rde1 {[%clk 0:00:05]}  Rfe8 {[%clk 0:01:09]} 28. Bb5 {[%clk 0:00:00]}  Re7 {[%clk 0:01:08]} 0-1


[Site "https://www.chess.com"]

[Event "Titled Tuesday Blitz July 25 Early 2023"]
[White "Estrada Nieto, Julian"]
[Black "SoyuzTM4"]
[WhiteFideId "5101018"]
[WhiteElo "2450"]
[BlackElo "2195"]
[Result "1-0"]
[Round "5"]
[TimeControl "180+2"]
[Date "2023.07.25"]
[WhiteClock "0:00:53"]
[BlackClock "0:00:00"]
[Board "171"]

1. e4 {[%clk 0:03:00]}  c5 {[%clk 0:02:57]} 2. Nf3 {[%clk 0:03:00]}  e6 {[%clk 0:02:56]} 3. c3 {[%clk 0:03:00]}  d6 {[%clk 0:02:53]} 4. d4 {[%clk 0:02:59]}  Be7 {[%clk 0:02:51]} 5. Bd3 {[%clk 0:02:58]}  Nf6 {[%clk 0:02:47]} 6. O-O {[%clk 0:02:57]}  Nc6 {[%clk 0:02:44]} 7. Qe2 {[%clk 0:02:53]}  cxd4 {[%clk 0:02:34]} 8. cxd4 {[%clk 0:02:53]}  O-O {[%clk 0:02:26]} 9. Nc3 {[%clk 0:02:52]}  e5 {[%clk 0:02:26]} 10. d5 {[%clk 0:02:31]}  Nb8 {[%clk 0:02:25]} 11. Nd2 {[%clk 0:02:21]}  Nbd7 {[%clk 0:02:20]} 12. Nc4 {[%clk 0:02:11]}  Nc5 {[%clk 0:02:12]} 13. Be3 {[%clk 0:02:08]}  a6 {[%clk 0:02:06]} 14. a4 {[%clk 0:02:04]}  Nb3 {[%clk 0:01:50]} 15. Ra3 {[%clk 0:02:00]}  Nd4 {[%clk 0:01:49]} 16. Qd1 {[%clk 0:01:55]}  Bg4 {[%clk 0:01:42]} 17. f3 {[%clk 0:01:54]}  Bd7 {[%clk 0:01:41]} 18. Ne2 {[%clk 0:01:48]}  b5 {[%clk 0:01:32]} 19. axb5 {[%clk 0:01:45]}  axb5 {[%clk 0:01:29]} 20. Rxa8 {[%clk 0:01:41]}  Qxa8 {[%clk 0:01:28]} 21. Nb6 {[%clk 0:01:39]}  Nxe2+ {[%clk 0:01:17]} 22. Qxe2 {[%clk 0:01:38]}  Qb7 {[%clk 0:01:01]} 23. Nxd7 {[%clk 0:01:35]}  Nxd7 {[%clk 0:01:00]} 24. Bxb5 {[%clk 0:01:35]}  Nc5 {[%clk 0:00:59]} 25. Bc6 {[%clk 0:01:21]}  Qb3 {[%clk 0:00:55]} 26. Ra1 {[%clk 0:01:16]}  Rb8 {[%clk 0:00:45]} 27. Ra3 {[%clk 0:00:57]}  Qxb2 {[%clk 0:00:42]} 28. Qxb2 {[%clk 0:00:57]}  Rxb2 {[%clk 0:00:41]} 29. Ra8+ {[%clk 0:00:58]}  Bf8 {[%clk 0:00:39]} 30. Bxc5 {[%clk 0:00:53]}  dxc5 {[%clk 0:00:00]} 31. d6 {[%clk 0:00:53]} 1-0


[Site "https://www.chess.com"]